bitfinex-derivatives/quotes_BTCF0:USTF0_20241006
["timestamp","ask_amount","ask_price","bid_price","bid_amount"]
[1728229843229,0.11,62643.0,62642.0,0.063851]
[1728229843430,0.14201502,62643.0,62642.0,0.063851]
[1728229845038,0.03201502,62643.0,62642.0,0.065851]
[1728229845441,0.03201502,62643.0,62642.0,0.067851]
[1728229846037,0.0306,62647.0,62642.0,0.004]
[1728229846242,0.0306,62647.0,62646.0,0.063847]
[1728229846440,0.03178146,62648.0,62646.0,0.173847]
[1728229846745,0.03178146,62647.0,62646.0,0.173847]
[1728229846928,0.03178146,62647.0,62646.0,0.11]
[1728229847247,0.03630848,62653.0,62651.0,0.063842]
[1728229847548,0.03194448,62652.0,62651.0,0.063842]
[1728229848846,0.04594448,62652.0,62651.0,0.063842]
[1728229850341,0.05994448,62652.0,62651.0,0.063842]
[1728229852345,0.06006597,62652.0,62651.0,0.063842]
[1728229852846,0.028,62652.0,62651.0,0.063842]
[1728229853049,0.028,62652.0,62651.0,0.094442]
[1728229863156,0.0104,62652.0,62651.0,1.173282]
[1728229865952,0.0104,62652.0,62651.0,1.534082]
[1728229869658,0.0104,62652.0,62651.0,0.934082]
[1728229870566,0.0104,62652.0,62651.0,1.534082]
[1728229871752,0.0104,62652.0,62651.0,0.934082]
[1728229871957,0.0074,62656.0,62655.0,0.063838]
[1728229872150,0.00239423,62666.0,62660.0,0.063833]
[1728229872151,0.0111,62661.0,62660.0,0.063833]
[1728229872350,0.00239423,62666.0,62665.0,0.063828]
[1728229873159,0.02929069,62666.0,62665.0,0.063828]
[1728229873461,0.00239423,62666.0,62665.0,0.063828]
[1728229873660,0.01339423,62666.0,62665.0,0.064828]
[1728229873964,0.02739423,62666.0,62665.0,0.065828]
[1728229874662,0.025,62666.0,62665.0,0.065828]
[1728229876059,0.013,62666.0,62665.0,0.065828]
[1728229883260,0.013,62666.0,62665.0,0.426628]
[1728229885264,0.0321,62678.0,62672.0,0.063821]
[1728229885566,0.0321,62678.0,62672.0,0.11]
[1728229885768,0.0321,62678.0,62677.0,0.063816]
[1728229886069,0.05832476,62678.0,62677.0,0.063816]
[1728229886974,0.08032476,62678.0,62677.0,0.064816]
[1728229887275,0.0074,62684.0,62677.0,1.865056]
[1728229887480,0.0074,62687.0,62686.0,0.063806]
[1728229887774,0.0074,62693.0,62692.0,0.0638]
[1728229887974,0.3608,62695.0,62694.0,0.063798]
[1728229888173,0.38769609,62695.0,62694.0,0.063798]
[1728229889464,0.38769609,62695.0,62694.0,0.424598]
[1728229889465,0.02689609,62695.0,62694.0,0.424598]
[1728229889663,0.0644,62698.0,62697.0,0.063795]
[1728229889976,0.0644,62698.0,62697.0,0.173795]
[1728229890962,0.0910741,62698.0,62697.0,0.173795]
[1728229891371,0.0599741,62698.0,62697.0,0.173795]
[1728229892470,0.0599741,62698.0,62697.0,0.065795]
[1728229893475,0.0599741,62698.0,62697.0,0.175795]
[1728229893686,0.0266741,62698.0,62697.0,0.175795]
[1728229893977,0.0074,62704.0,62703.0,0.063789]
[1728229894174,0.0355,62705.0,62703.0,0.063789]
[1728229894175,0.0318,62705.0,62704.0,0.063788]
[1728229895369,0.0318,62705.0,62704.0,0.424588]
[1728229895370,0.05848228,62705.0,62704.0,0.424588]
[1728229896477,0.05848228,62705.0,62704.0,0.594588]
[1728229896680,0.05848228,62705.0,62704.0,0.425588]
[1728229897388,0.05848228,62705.0,62704.0,0.426588]
[1728229897879,0.05848228,62705.0,62704.0,0.065788]
[1728229898767,0.05848228,62705.0,62704.0,0.002]
[1728229903481,0.05848228,62705.0,62704.0,0.065788]
[1728229904882,0.02668228,62705.0,62704.0,0.235788]
[1728229905079,0.0111,62711.0,62710.0,0.063782]
[1728229905276,0.00239289,62714.0,62713.0,0.063779]
[1728229905473,0.02914106,62714.0,62713.0,0.063779]
[1728229905678,0.00239289,62714.0,62713.0,0.063779]
[1728229906671,0.00239289,62714.0,62713.0,0.064779]
[1728229908482,0.00239289,62714.0,62713.0,0.065779]
[1728229909185,0.02951354,62714.0,62713.0,0.064779]
[1728229909387,0.00239289,62714.0,62713.0,0.065779]
[1728229911380,0.0111,62721.0,62720.0,0.063772]
[1728229911577,0.0308,62724.0,62720.0,0.17]
[1728229911780,0.0308,62724.0,62722.0,0.06377]
[1728229911978,0.38769347,62723.0,62722.0,0.06377]
[1728229913182,0.38769347,62723.0,62722.0,0.06477]
[1728229913983,0.38769347,62723.0,62722.0,0.001]
[1728229914190,0.92974247,62723.0,62722.0,0.002]
[1728229914687,0.86597347,62723.0,62722.0,0.002]
[1728229915077,0.92974247,62723.0,62722.0,0.002]
[1728229916190,1.52974247,62723.0,62722.0,0.002]
[1728229917288,1.56443893,62723.0,62722.0,0.002]
[1728229919201,1.56430869,62723.0,62722.0,0.002]
[1728229920594,0.96430869,62723.0,62722.0,0.002]
[1728229920998,1.56430869,62723.0,62722.0,0.002]
[1728229921180,0.96430869,62723.0,62722.0,0.002]
[1728229922681,0.063772,62720.0,62714.0,0.063777]
[1728229922887,0.20456622,62719.0,62714.0,0.063777]
[1728229923200,0.17,62715.0,62714.0,0.063777]
[1728229923796,0.17,62719.0,62715.0,0.063776]
[1728229923998,0.03462886,62718.0,62715.0,0.063776]
[1728229924197,0.17,62719.0,62715.0,0.063776]
[1728229924495,0.03463288,62718.0,62715.0,0.063776]
[1728229924697,0.17,62719.0,62715.0,0.063776]
[1728229924892,0.17,62719.0,62716.0,0.063776]
[1728229924893,0.0346167,62718.0,62716.0,0.063776]
[1728229925082,0.17,62719.0,62716.0,0.063776]
[1728229925285,0.03461383,62718.0,62716.0,0.063776]
[1728229926299,0.17,62719.0,62716.0,0.064776]
[1728229926592,0.03464333,62718.0,62716.0,0.064776]
[1728229926784,0.17,62719.0,62716.0,0.064776]
[1728229926989,0.03463904,62718.0,62716.0,0.065776]
[1728229927184,0.17,62719.0,62716.0,0.065776]
[1728229927382,0.03466423,62718.0,62717.0,0.063775]
[1728229929296,0.03466423,62718.0,62717.0,0.064775]
[1728229929786,0.03466423,62718.0,62717.0,0.065775]
[1728229931693,0.55849347,62723.0,62717.0,0.002]
[1728229931694,0.0346875,62722.0,62717.0,0.002]
[1728229931897,0.03468674,62721.0,62720.0,0.063772]
[1728229933385,0.07500584,62722.0,62721.0,0.063771]
[1728229933589,0.0750473,62722.0,62721.0,0.063771]
[1728229935889,0.0750473,62722.0,62721.0,0.065771]
[1728229941000,0.38857347,62723.0,62721.0,0.065771]
[1728229941201,0.07510861,62722.0,62721.0,0.065771]
[1728229941699,0.12405469,62722.0,62721.0,0.065771]
[1728229942198,0.26724303,62722.0,62721.0,0.065771]
[1728229942503,0.07510861,62722.0,62721.0,0.065771]
[1728229944393,0.18510861,62722.0,62721.0,0.065771]
[1728229944602,0.18510861,62722.0,62721.0,0.002]
[1728229945201,0.18510861,62722.0,62721.0,0.065771]
[1728229954508,0.18510861,62722.0,62721.0,0.002]
[1728229954813,0.063771,62721.0,62717.0,0.063775]
[1728229955013,0.11,62718.0,62717.0,0.063775]
[1728229955319,0.18510861,62718.0,62717.0,0.063775]
[1728229956404,0.18510861,62718.0,62717.0,0.064775]
[1728229957014,0.18510861,62718.0,62717.0,0.065775]
[1728229961202,0.1849401,62718.0,62717.0,0.065775]
[1728229962603,0.0749401,62718.0,62717.0,0.175775]
[1728229963012,0.03467768,62718.0,62717.0,0.175775]
[1728229963513,0.03480105,62722.0,62721.0,0.063771]
[1728229963708,0.07520668,62722.0,62718.0,0.063774]
[1728229963903,0.07520668,62721.0,62720.0,0.063772]
[1728229964306,0.03480104,62721.0,62720.0,0.063772]
[1728229964711,0.11,62723.0,62722.0,0.06377]
[1728229965016,0.1852569,62723.0,62722.0,0.06377]
[1728229965517,0.14482428,62723.0,62722.0,0.06377]
[1728229966814,0.14482428,62723.0,62722.0,0.06477]
[1728229967016,0.14482428,62723.0,62722.0,0.06577]
[1728229967722,0.03482428,62723.0,62722.0,0.17577]
[1728229967907,0.03492515,62723.0,62722.0,0.17577]
[1728229969209,0.03492515,62723.0,62722.0,0.06577]
[1728229969411,0.3883245,62724.0,62723.0,0.063769]
[1728229969617,0.42244703,62724.0,62723.0,0.063769]
[1728229970121,0.53244703,62724.0,62723.0,0.063769]
[1728229970910,0.53244703,62724.0,62723.0,0.064769]
[1728229971819,0.57300251,62724.0,62723.0,0.064769]
[1728229972018,0.53244703,62724.0,62723.0,0.064769]
[1728229972208,0.53244703,62724.0,62723.0,0.065769]
[1728229972408,0.57299083,62724.0,62723.0,0.065769]
[1728229973816,0.57299083,62724.0,62723.0,0.002]
[1728229975424,0.46299083,62724.0,62723.0,0.002]
[1728229975618,0.46299083,62724.0,62723.0,0.065769]
[1728229978721,0.42245024,62724.0,62723.0,0.065769]
[1728229981129,0.46300972,62724.0,62723.0,0.065769]
[1728229984928,0.42245024,62724.0,62723.0,0.065769]
[1728229988824,0.06165024,62724.0,62723.0,0.065769]
[1728229992023,0.0266845,62724.0,62723.0,0.065769]
[1728229992225,0.4716,62726.0,62723.0,0.065769]
[1728229992538,0.03494615,62725.0,62724.0,0.063768]
[1728229992923,0.3616,62726.0,62723.0,0.002]
[1728229992924,0.3608,62726.0,62725.0,0.063767]
[1728229993228,0.42204945,62726.0,62725.0,0.063767]
[1728229994326,0.42204945,62726.0,62725.0,0.064767]
[1728229995535,0.42204945,62726.0,62725.0,0.174767]
[1728229997439,0.10196276,62726.0,62725.0,0.175767]
[1728229997738,0.10216979,62726.0,62725.0,0.175767]
[1728229998035,0.06124945,62726.0,62725.0,0.175767]
[1728229998627,0.06124945,62726.0,62725.0,0.174767]
[1728229998836,0.06124945,62726.0,62725.0,0.175767]
[1728229999538,0.06124945,62726.0,62725.0,0.065767]
[1728229999735,0.06124945,62726.0,62725.0,0.175767]
[1728230001135,0.06148509,62726.0,62725.0,0.175767]
[1728230006145,0.06144582,62726.0,62725.0,0.175767]
[1728230008740,0.17144582,62726.0,62725.0,0.065767]
[1728230010545,0.02620739,62726.0,62725.0,0.065767]
[1728230010744,0.0319,62729.0,62725.0,0.002]
[1728230011040,0.0319,62729.0,62728.0,0.11]
[1728230011638,0.0319,62729.0,62728.0,0.173764]
[1728230013436,0.06718127,62729.0,62728.0,0.173764]
[1728230013646,0.09427782,62729.0,62728.0,0.173764]
[1728230014054,0.02709655,62729.0,62728.0,0.174764]
[1728230014245,0.0004,62730.0,62728.0,0.111]
[1728230014548,0.0004,62730.0,62729.0,0.063763]
[1728230016347,0.02703154,62730.0,62729.0,0.063763]
[1728230016746,0.02703154,62730.0,62729.0,0.064763]
[1728230017244,0.06233324,62730.0,62729.0,0.065763]
[1728230019756,0.02703154,62730.0,62729.0,0.065763]
[1728230020654,0.06238646,62730.0,62729.0,0.065763]
[1728230021749,0.02703154,62730.0,62729.0,0.065763]
[1728230022444,0.06240119,62730.0,62729.0,0.065763]
[1728230023857,0.03576965,62730.0,62729.0,0.065763]
[1728230024258,0.03536965,62730.0,62729.0,1.144003]
[1728230024446,0.0111,62735.0,62734.0,0.063758]
[1728230024648,0.14318834,62739.0,62738.0,0.063754]
[1728230024950,0.14318834,62739.0,62738.0,0.173754]
[1728230025260,0.17005774,62739.0,62738.0,0.173754]
[1728230026757,0.17005774,62739.0,62738.0,0.174754]
[1728230026957,0.17005774,62739.0,62738.0,0.175754]
[1728230028556,0.14318834,62739.0,62738.0,0.175754]
[1728230036461,0.02711559,62742.0,62741.0,0.06375]
[1728230036765,0.0023915,62743.0,62742.0,0.063749]
[1728230038148,0.0023915,62743.0,62742.0,0.064749]
[1728230038356,0.02881243,62743.0,62742.0,0.064749]
[1728230038554,0.0023915,62743.0,62742.0,0.064749]
[1728230039761,0.0023915,62743.0,62742.0,0.065749]
[1728230043453,0.0023915,62743.0,62742.0,0.175749]
[1728230047973,0.0023915,62743.0,62742.0,0.065749]
[1728230048170,0.0023915,62743.0,62742.0,0.175749]
[1728230050466,0.03825978,62743.0,62742.0,0.175749]
[1728230053369,0.03825978,62743.0,62742.0,0.536549]
[1728230055777,0.0023915,62743.0,62742.0,0.536549]
[1728230056581,0.0023915,62743.0,62742.0,0.426549]
[1728230056777,0.0023915,62743.0,62742.0,0.536549]
[1728230059790,0.03811996,62748.0,62747.0,0.063744]
[1728230059983,0.06296189,62748.0,62747.0,0.173744]
[1728230060868,0.06296189,62748.0,62747.0,0.174744]
[1728230061281,0.06296189,62748.0,62747.0,0.064744]
[1728230061577,0.06296189,62748.0,62747.0,0.174744]
[1728230062478,0.06296189,62748.0,62747.0,0.175744]
[1728230062988,0.10465057,62748.0,62747.0,0.175744]
[1728230069180,0.06296189,62748.0,62747.0,0.175744]
[1728230069381,0.06296189,62748.0,62747.0,0.065744]
[1728230070777,0.02701996,62748.0,62747.0,0.065744]
[1728230073891,0.06296701,62748.0,62747.0,0.065744]
[1728230074991,0.06874709,62748.0,62747.0,0.065744]
[1728230075292,0.02701996,62748.0,62747.0,0.065744]
[1728230075490,0.10469414,62748.0,62747.0,0.065744]
[1728230076591,0.02701996,62748.0,62747.0,0.065744]
[1728230082984,0.06298994,62748.0,62747.0,0.065744]
[1728230084288,0.02701996,62748.0,62747.0,0.065744]
[1728230084485,0.06302625,62748.0,62747.0,0.065744]
[1728230084690,0.02701996,62748.0,62747.0,0.065744]
[1728230085090,0.06304437,62748.0,62747.0,0.065744]
[1728230085393,0.02701996,62748.0,62747.0,0.065744]
[1728230085595,0.06302652,62748.0,62747.0,0.065744]
[1728230085799,0.02701996,62748.0,62747.0,0.065744]
[1728230086692,0.06880751,62748.0,62747.0,0.065744]
[1728230086999,0.10480829,62748.0,62747.0,0.065744]
[1728230087998,0.10478137,62748.0,62747.0,0.065744]
[1728230089208,0.02701996,62748.0,62747.0,0.065744]
[1728230093000,0.06304807,62748.0,62747.0,0.065744]
[1728230094909,0.02701996,62748.0,62747.0,0.065744]
[1728230103714,0.06307323,62748.0,62747.0,0.065744]
[1728230105922,0.06307653,62748.0,62747.0,0.065744]
[1728230109709,0.06307653,62748.0,62747.0,0.175744]
[1728230109910,0.06307653,62748.0,62747.0,0.065744]
[1728230110116,0.06307653,62748.0,62747.0,0.175744]
[1728230110918,0.0630716,62748.0,62747.0,0.175744]
[1728230112611,0.10492902,62748.0,62747.0,0.175744]
[1728230113922,0.0630716,62748.0,62747.0,0.175744]
[1728230115728,0.03645164,62748.0,62747.0,0.175744]
[1728230118715,0.0083,62753.0,62752.0,0.063739]
[1728230118911,0.0046,62753.0,62752.0,0.173739]
[1728230119319,0.04102056,62753.0,62752.0,0.173739]
[1728230119523,0.0046,62753.0,62752.0,0.173739]
[1728230120318,0.0046,62753.0,62752.0,0.175739]
[1728230123031,0.0046,62753.0,62752.0,1.253819]
[1728230123729,0.0046,62753.0,62752.0,1.252819]
[1728230125029,0.0046,62753.0,62752.0,0.064739]
[1728230125240,0.0046,62753.0,62752.0,0.063739]
[1728230125434,0.0348,62753.0,62752.0,0.11]
[1728230125727,0.04068351,62753.0,62752.0,0.173739]
[1728230125931,0.0046,62753.0,62752.0,0.173739]
[1728230127433,0.0046,62753.0,62752.0,0.063739]
[1728230127434,0.1146,62753.0,62752.0,0.063739]
[1728230128532,0.04066646,62753.0,62752.0,0.173739]
[1728230128733,0.0046,62753.0,62752.0,0.173739]
[1728230133933,0.0046,62753.0,62752.0,1.251819]
[1728230134631,0.0046,62753.0,62752.0,0.651819]
[1728230134839,0.1146,62753.0,62752.0,0.063739]
[1728230135633,0.0046,62753.0,62752.0,0.173739]
[1728230137735,0.0046,62753.0,62752.0,0.651819]
[1728230137935,0.0046,62753.0,62752.0,0.173739]
[1728230138139,0.0046,62753.0,62752.0,0.063739]
[1728230138738,0.11,62757.0,62752.0,0.063739]
[1728230138936,0.11,62757.0,62756.0,0.063735]
[1728230139629,0.05719857,62759.0,62758.0,0.063733]
[1728230139837,0.0303,62759.0,62758.0,0.063733]
[1728230142049,0.0303,62759.0,62758.0,0.064733]
[1728230142436,0.06674963,62759.0,62758.0,0.065733]
[1728230143347,0.03644963,62759.0,62758.0,0.065733]
[1728230143646,0.03645826,62761.0,62760.0,0.063731]
[1728230143841,0.03645825,62761.0,62759.0,0.063732]
[1728230144144,0.0332,62763.0,62760.0,0.11]
[1728230144343,0.03646206,62762.0,62761.0,0.06373]
[1728230145649,0.03646206,62762.0,62761.0,0.06573]
[1728230153543,0.06005753,62763.0,62762.0,0.063729]
[1728230153748,0.09664198,62763.0,62762.0,0.063729]
[1728230154054,0.06005753,62763.0,62762.0,0.534529]
[1728230154957,0.02685753,62763.0,62762.0,0.536529]
[1728230155169,0.11,62770.0,62767.0,0.063724]
[1728230155458,0.03667023,62769.0,62767.0,0.063724]
[1728230155657,0.03667023,62769.0,62766.0,0.11]
[1728230155658,0.03667023,62769.0,62768.0,0.063723]
[1728230156546,0.06301104,62769.0,62768.0,0.063723]
[1728230158159,0.06301104,62769.0,62768.0,0.064723]
[1728230158456,0.06301104,62769.0,62768.0,0.065723]
[1728230159056,0.06301104,62769.0,62768.0,0.175723]
[1728230162470,0.02634081,62769.0,62768.0,0.175723]
[1728230162777,0.0633,62771.0,62770.0,0.063721]
[1728230162951,0.10018435,62771.0,62770.0,0.063721]
[1728230164052,0.12651563,62771.0,62770.0,0.063721]
[1728230164264,0.12650038,62771.0,62770.0,0.063721]
[1728230164858,0.09340038,62771.0,62770.0,0.063721]
[1728230165058,0.09340038,62771.0,62770.0,0.065721]
[1728230165957,0.05653128,62771.0,62770.0,0.065721]
[1728230166966,0.0302,62771.0,62770.0,0.065721]
[1728230172773,0.06709555,62771.0,62770.0,0.065721]
[1728230173277,0.06701367,62771.0,62770.0,0.065721]
[1728230173472,0.0302,62771.0,62770.0,0.065721]
[1728230180970,0.02605372,62772.0,62770.0,0.002]
[1728230181165,0.00239072,62773.0,62771.0,0.11]
[1728230181361,0.00239072,62773.0,62772.0,0.063719]
[1728230181562,0.0393952,62773.0,62772.0,0.063719]
[1728230182676,0.0393952,62773.0,62772.0,0.064719]
[1728230183269,0.06673977,62773.0,62772.0,0.064719]
[1728230183766,0.06673977,62773.0,62772.0,0.065719]
[1728230190872,0.10977526,62773.0,62772.0,0.065719]
[1728230193284,0.06673977,62773.0,62772.0,0.065719]
[1728230203186,0.10973377,62773.0,62772.0,0.065719]
[1728230209601,0.06673977,62773.0,62772.0,0.065719]
[1728230210499,0.02973529,62773.0,62772.0,0.065719]
[1728230210801,0.06680501,62773.0,62772.0,0.065719]
[1728230214299,0.06682684,62773.0,62772.0,0.065719]
[1728230219001,0.02973529,62773.0,62772.0,0.065719]
[1728230219207,0.10981426,62773.0,62772.0,0.065719]
[1728230221612,0.21981426,62773.0,62772.0,0.065719]
[1728230224597,0.0074,62778.0,62772.0,1.143639]
[1728230224923,0.0041,62779.0,62778.0,0.063713]
[1728230224924,0.0004,62779.0,62778.0,0.063713]
[1728230225099,0.0004,62779.0,62778.0,0.173713]
[1728230227010,0.0004,62779.0,62778.0,0.063713]
[1728230227209,0.0004,62779.0,62778.0,0.064713]
[1728230227409,0.0004,62779.0,62778.0,0.065713]
[1728230227617,0.1104,62779.0,62778.0,0.065713]
[1728230227914,0.0004,62779.0,62778.0,0.065713]
[1728230236508,0.0004,62779.0,62778.0,0.175713]
[1728230241423,0.0272777,62781.0,62778.0,0.175713]
[1728230241615,0.11,62783.0,62778.0,0.112]
[1728230241811,0.03675188,62782.0,62778.0,0.112]
[1728230242012,0.13620911,62783.0,62782.0,0.063715]
[1728230242223,0.1729448,62783.0,62782.0,0.063715]
[1728230243631,0.0629448,62783.0,62782.0,0.064715]
[1728230243930,0.0629448,62783.0,62782.0,0.065715]
[1728230246731,0.1729448,62783.0,62782.0,0.065715]
[1728230250935,0.17286321,62783.0,62782.0,0.065715]
[1728230252423,0.17286321,62783.0,62782.0,0.064715]
[1728230252621,0.21543447,62783.0,62782.0,0.065715]
[1728230252932,0.21543447,62783.0,62782.0,0.064715]
[1728230253131,0.17286321,62783.0,62782.0,0.065715]
[1728230253541,0.21551606,62783.0,62782.0,0.065715]
[1728230253725,0.17286321,62783.0,62782.0,0.065715]
[1728230254430,0.06286321,62783.0,62782.0,0.065715]
[1728230254631,0.10555128,62783.0,62782.0,0.065715]
[1728230258235,0.10555128,62783.0,62782.0,0.064715]
[1728230258428,0.10555128,62783.0,62782.0,0.065715]
[1728230258841,0.21555128,62783.0,62782.0,0.065715]
[1728230260740,0.21557032,62783.0,62782.0,0.065715]
[1728230262437,0.57637032,62783.0,62782.0,0.065715]
[1728230264542,0.21557032,62783.0,62782.0,0.065715]
[1728230264738,0.57637032,62783.0,62782.0,0.065715]
[1728230265645,0.21557032,62783.0,62782.0,0.065715]
[1728230265831,0.57637032,62783.0,62782.0,0.065715]
[1728230266033,0.21557032,62783.0,62782.0,0.065715]
[1728230266244,0.57637032,62783.0,62782.0,0.065715]
[1728230266636,0.21557032,62783.0,62782.0,0.065715]
[1728230266843,0.57637032,62783.0,62782.0,0.065715]
[1728230267743,0.53373261,62783.0,62782.0,0.065715]
[1728230270147,0.53372126,62783.0,62782.0,0.065715]
[1728230270850,0.53371575,62783.0,62782.0,0.065715]
[1728230271151,0.17291575,62783.0,62782.0,0.065715]
[1728230271344,0.53371575,62783.0,62782.0,0.065715]
[1728230276050,0.57632396,62783.0,62782.0,0.065715]
[1728230280055,0.5760827,62783.0,62782.0,0.065715]
[1728230288152,0.42359952,62783.0,62782.0,0.065715]
[1728230288355,0.42382969,62783.0,62782.0,0.065715]
[1728230288555,0.38700911,62783.0,62782.0,0.065715]
[1728230289359,0.02620911,62783.0,62782.0,0.543555]
[1728230289559,0.0074,62789.0,62788.0,0.063709]
[1728230289755,0.0641172,62789.0,62788.0,0.063709]
[1728230290063,0.1741172,62789.0,62788.0,0.063709]
[1728230290763,0.1741172,62789.0,62788.0,0.064709]
[1728230291357,0.1741172,62789.0,62788.0,0.065709]
[1728230291552,0.0641172,62789.0,62788.0,0.065709]
[1728230291956,0.0641172,62789.0,62788.0,0.096109]
[1728230292955,0.02719337,62789.0,62788.0,0.096109]
[1728230293158,0.03704207,62789.0,62788.0,0.096109]
[1728230293556,0.3608,62790.0,62789.0,0.063708]
[1728230293756,0.42452143,62790.0,62789.0,0.173708]
[1728230294964,0.42452143,62790.0,62789.0,0.174708]
[1728230295464,0.38747967,62790.0,62789.0,0.174708]
[1728230295665,0.38747967,62790.0,62789.0,0.064708]
[1728230296369,0.38747967,62790.0,62789.0,0.065708]
[1728230297069,0.4245062,62790.0,62789.0,0.065708]
[1728230297263,0.38747967,62790.0,62789.0,0.065708]
[1728230297761,0.42446734,62790.0,62789.0,0.065708]
[1728230298273,0.38747967,62790.0,62789.0,0.065708]
[1728230298656,0.42437325,62790.0,62789.0,0.065708]
[1728230299372,0.48808025,62790.0,62789.0,0.002]
[1728230299870,0.42437325,62790.0,62789.0,0.065708]
[1728230301477,0.38747967,62790.0,62789.0,0.065708]
[1728230301777,0.42443944,62790.0,62789.0,0.065708]
[1728230302464,0.42440563,62790.0,62789.0,0.065708]
[1728230303363,0.46709904,62790.0,62789.0,0.065708]
[1728230303563,0.46709904,62790.0,62789.0,0.002]
[1728230303770,0.46709904,62790.0,62784.0,0.063712]
[1728230303771,0.53080604,62790.0,62784.0,0.063712]
[1728230304072,0.11,62785.0,62784.0,0.063712]
[1728230304262,0.14692596,62785.0,62784.0,0.063712]
[1728230305168,0.14692596,62785.0,62784.0,0.064712]
[1728230305376,0.14692596,62785.0,62784.0,0.065712]
[1728230305567,0.14692596,62785.0,62784.0,0.064712]
[1728230305767,0.14692596,62785.0,62784.0,0.002]
[1728230305974,0.18951511,62785.0,62784.0,0.002]
[1728230306375,0.25291511,62785.0,62784.0,0.002]
[1728230307172,0.21089206,62785.0,62784.0,0.002]
[1728230307563,0.93249206,62785.0,62784.0,0.002]
[1728230308477,0.21089206,62785.0,62784.0,0.002]
[1728230308773,0.063714,62783.0,62778.0,0.0111]
[1728230308978,0.11,62779.0,62777.0,0.06372]
[1728230309667,0.0398,62784.0,62778.0,0.11]
[1728230309870,0.0398,62784.0,62782.0,0.11]
[1728230310067,0.05864367,62784.0,62783.0,0.063714]
[1728230310983,0.06064367,62784.0,62783.0,0.063714]
[1728230311874,0.06064367,62784.0,62783.0,0.065714]
[1728230312971,0.02824367,62784.0,62783.0,0.065714]
[1728230314174,0.06490841,62784.0,62783.0,0.002]
[1728230314977,0.1073416,62784.0,62783.0,0.002]
[1728230316577,0.4681416,62784.0,62783.0,0.002]
[1728230317485,0.42570841,62784.0,62783.0,0.002]
[1728230318165,0.46818228,62784.0,62783.0,0.065714]
[1728230318369,0.42570841,62784.0,62783.0,0.065714]
[1728230320084,0.06490841,62784.0,62783.0,0.065714]
[1728230320281,0.42570841,62784.0,62783.0,0.065714]
[1728230321177,0.38904367,62784.0,62783.0,0.065714]
[1728230324581,0.49904367,62784.0,62783.0,0.065714]
[1728230329289,0.57824327,62784.0,62783.0,0.065714]
[1728230330585,0.57824327,62784.0,62783.0,0.064714]
[1728230330783,0.57824327,62784.0,62778.0,0.063719]
[1728230330784,0.53569239,62784.0,62778.0,0.063719]
[1728230330986,0.11,62780.0,62779.0,0.063718]
[1728230331289,0.1466994,62780.0,62779.0,0.063718]
[1728230332591,0.11,62780.0,62779.0,0.063718]
[1728230333290,0.14672236,62780.0,62779.0,0.063718]
[1728230333787,0.14972236,62780.0,62779.0,0.063718]
[1728230334394,0.19230916,62780.0,62779.0,0.063718]
[1728230334588,0.19230916,62780.0,62773.0,0.0111]
[1728230334789,0.11080916,62779.0,62774.0,0.063723]
[1728230334992,0.11,62775.0,62774.0,0.063723]
[1728230335190,0.18930916,62775.0,62774.0,0.063723]
[1728230335698,0.18858018,62775.0,62774.0,0.063723]
[1728230337097,0.18858018,62775.0,62774.0,0.065723]
[1728230337293,0.14636209,62775.0,62774.0,0.069723]
[1728230337786,0.14636209,62775.0,62774.0,0.065723]
[1728230337980,0.14636209,62775.0,62774.0,0.069723]
[1728230338703,0.03636209,62775.0,62774.0,0.069723]
[1728230338896,0.14636209,62775.0,62774.0,0.069723]
[1728230339087,0.14636209,62775.0,62774.0,0.067723]
[1728230339287,0.14636209,62775.0,62774.0,0.069723]
[1728230340290,0.17240279,62775.0,62774.0,0.069723]
[1728230340481,0.17237597,62775.0,62774.0,0.069723]
[1728230343887,0.17225949,62775.0,62774.0,0.069723]
[1728230346098,0.21430785,62775.0,62774.0,0.006]
[1728230347500,0.17225949,62775.0,62774.0,0.006]
[1728230347800,0.17225949,62775.0,62774.0,0.069723]
[1728230353404,0.17231208,62775.0,62774.0,0.069723]
[1728230358104,0.17232101,62775.0,62774.0,0.069723]
[1728230362915,0.21445256,62775.0,62774.0,0.069723]
[1728230367917,0.21445256,62775.0,62774.0,0.065723]
[1728230368618,0.57525256,62775.0,62774.0,0.065723]
[1728230368814,0.57825256,62775.0,62774.0,0.063723]
[1728230370413,0.6271583,62775.0,62774.0,0.063723]
[1728230370615,0.6271583,62775.0,62770.0,0.0111]
[1728230370805,0.6271583,62775.0,62761.0,0.0301]
[1728230370806,0.11,62771.0,62766.0,0.0111]
[1728230371011,0.4535637,62775.0,62766.0,0.063731]
[1728230371012,0.11,62767.0,62766.0,0.063731]
[1728230371318,0.14628031,62767.0,62766.0,0.063731]
[1728230372112,0.14628031,62767.0,62766.0,0.068731]
[1728230372506,0.50708031,62767.0,62766.0,0.068731]
[1728230373117,0.50708031,62767.0,62766.0,0.071731]
[1728230373914,0.14628031,62767.0,62766.0,0.071731]
[1728230374122,0.50708031,62767.0,62766.0,0.071731]
[1728230374713,0.50708031,62767.0,62766.0,0.008]
[1728230375021,0.54888356,62767.0,62766.0,0.003]
[1728230375219,0.43888356,62767.0,62766.0,0.003]
[1728230375424,0.43888356,62767.0,62761.0,0.0301]
[1728230375425,0.55188356,62767.0,62765.0,0.063732]
[1728230375613,0.18808356,62766.0,62765.0,0.063732]
[1728230376716,0.14628031,62766.0,62765.0,0.063732]
[1728230377228,0.14928031,62766.0,62765.0,0.063732]
[1728230382021,0.113,62766.0,62765.0,0.063732]
[1728230382529,0.14900317,62766.0,62765.0,0.063732]
[1728230384433,0.113,62766.0,62765.0,0.063732]
[1728230385228,0.14902492,62766.0,62765.0,0.063732]
[1728230391028,0.14898095,62766.0,62765.0,0.063732]
[1728230391833,0.14897615,62766.0,62765.0,0.063732]
[1728230395330,0.03897615,62766.0,62765.0,0.063732]
[1728230395932,0.14897615,62766.0,62765.0,0.063732]
[1728230396852,0.03897615,62766.0,62765.0,0.063732]